bitfinex-derivatives/quotes_SOLF0:USTF0_20250603
["timestamp","ask_amount","ask_price","bid_price","bid_amount"]
[1748952105268,6.26564976,160.55,160.52,6.2252]
[1748952106367,6.2247,160.54,160.52,6.2252]
[1748952106562,0.04124976,160.55,160.52,6.2252]
[1748952106959,6.26584976,160.55,160.52,6.2252]
[1748952107363,6.2247,160.54,160.52,6.2252]
[1748952107559,0.04124976,160.55,160.51,0.04126477]
[1748952107978,6.26574976,160.55,160.52,6.2252]
[1748952108668,6.2248,160.54,160.52,6.2252]
[1748952110060,6.26554976,160.55,160.53,6.2251]
[1748952110665,6.26554976,160.55,160.52,6.2253]
[1748952113167,6.26554976,160.55,160.53,6.225]
[1748952113875,0.04124976,160.55,160.53,6.225]
[1748952115275,0.04124976,160.55,160.54,6.2247]
[1748952116575,0.04124976,160.55,160.53,6.2249]
[1748952116767,0.04124976,160.55,160.51,0.04126477]
[1748952117174,0.04124976,160.55,160.54,6.2247]
[1748952118174,0.04124976,160.55,160.53,6.2249]
[1748952118679,0.04124976,160.55,160.51,0.04126477]
[1748952121786,6.41395935,160.54,160.51,0.04126477]
[1748952122089,0.04124976,160.55,160.44,11.60855302]
[1748952122090,6.41395935,160.52,160.44,5.8185164]
[1748952122287,6.41395935,160.5,160.44,5.8185164]
[1748952122688,6.41395935,160.5,160.44,5.81856833]
[1748952122884,6.41395935,160.5,160.43,97.34099758]
[1748952123188,0.04279139,160.49,160.45,0.04113552]
[1748952124988,0.04279139,160.49,160.47,6.2272]
[1748952125183,6.26949139,160.49,160.47,6.2272]
[1748952126789,0.04279139,160.49,160.45,6.45509487]
[1748952127292,0.04279139,160.49,160.47,6.2271]
[1748952127495,0.04279139,160.49,160.45,6.45509487]
[1748952127693,6.26969139,160.49,160.46,6.2275]
[1748952127894,6.26969139,160.49,160.45,6.45509487]
[1748952128593,6.26969139,160.49,160.46,6.2277]
[1748952129587,6.26969139,160.49,160.47,6.2273]
[1748952130593,6.2273,160.48,160.45,0.04113552]
[1748952130789,0.04279139,160.49,160.45,0.04113552]
[1748952131191,6.26959139,160.49,160.46,6.2275]
[1748952131391,6.26959139,160.49,160.45,0.04113552]
[1748952131392,0.04279139,160.49,160.45,0.04113552]
[1748952132196,0.04279139,160.49,160.47,6.2272]
[1748952133088,6.26949139,160.49,160.47,6.2272]
[1748952133891,6.2271,160.48,160.46,6.2276]
[1748952134500,6.26959139,160.49,160.46,6.2276]
[1748952134701,6.26959139,160.49,160.45,0.04113552]
[1748952135205,6.26959139,160.49,160.47,6.2273]
[1748952135891,0.04279139,160.49,160.48,6.227]
[1748952137192,6.41395935,160.56,160.47,6.41395935]
[1748952137498,6.2241,160.56,160.49,6.41395935]
[1748952137694,6.41395935,160.59,160.51,6.41395935]
[1748952138092,6.2635144,160.57,160.54,6.2246]
[1748952138902,6.2635144,160.57,160.54,6.2246]
[1748952139293,0.0398144,160.57,160.55,6.2243]
[1748952144799,0.0398144,160.57,160.54,6.2245]
[1748952145299,6.2634144,160.57,160.54,6.2245]
[1748952146202,6.224,160.56,160.53,6.26739433]
[1748952146700,6.45377375,160.57,160.53,0.04239433]
[1748952147804,0.0398144,160.57,160.53,0.04239433]
[1748952148504,6.224,160.56,160.53,6.26729433]
[1748952148904,6.224,160.56,160.53,0.04239433]
[1748952149805,6.224,160.56,160.53,6.26719433]
[1748952150200,0.0398144,160.57,160.53,6.26719433]
[1748952150805,6.2243,160.55,160.53,6.26719433]
[1748952153003,6.224,160.56,160.53,6.26719433]
[1748952154500,6.2244,160.55,160.53,6.26719433]
[1748952156006,6.2244,160.55,160.53,0.04239433]
[1748952156801,6.2247,160.54,160.53,0.04239433]
[1748952160309,6.2245,160.55,160.53,0.04239433]
[1748952160711,6.45377375,160.57,160.53,0.04239433]
[1748952160907,6.2244,160.55,160.53,0.04239433]
[1748952161814,6.2247,160.54,160.53,0.04239433]
[1748952166617,6.45377375,160.57,160.53,0.04239433]
[1748952166918,0.0398144,160.57,160.55,6.41395935]
[1748952167223,130.87244645,160.64,160.55,6.41395935]
[1748952167224,6.2222,160.61,160.58,6.2229]
[1748952167422,125.11139445,160.64,160.58,6.2229]
[1748952167616,125.11139445,160.64,160.57,6.41395935]
[1748952167818,6.2225,160.6,160.57,12.63725935]
[1748952168017,6.2225,160.6,160.57,12.68482138]
[1748952168223,6.26308672,160.6,160.57,6.46152138]
[1748952168411,0.04058672,160.6,160.57,0.04756203]
[1748952169536,6.2231,160.58,160.57,0.04756203]
[1748952177030,0.04058672,160.6,160.57,0.04756203]
[1748952177834,0.04058672,160.6,160.57,6.27096203]
[1748952178037,6.26318672,160.6,160.57,6.27096203]
[1748952179536,6.26318672,160.6,160.57,0.04756203]
[1748952180335,6.26318672,160.6,160.57,6.27086203]
[1748952182140,0.04058672,160.6,160.57,0.04756203]
[1748952182933,6.2227,160.59,160.57,0.04756203]
[1748952183134,0.04058672,160.6,160.57,0.04756203]
[1748952183639,6.2231,160.59,160.57,0.04756203]
[1748952184745,6.26318672,160.6,160.57,6.27106203]
[1748952184936,0.04058672,160.6,160.57,6.27106203]
[1748952185136,6.2228,160.59,160.57,0.04756203]
[1748952185338,0.04058672,160.6,160.57,0.04756203]
[1748952185837,6.26308672,160.6,160.57,6.27076203]
[1748952187348,0.04058672,160.6,160.57,0.04756203]
[1748952188040,6.2231,160.58,160.57,0.04756203]
[1748952189346,6.2228,160.59,160.57,0.04756203]
[1748952190646,6.2231,160.58,160.57,0.04756203]
[1748952191946,6.2229,160.59,160.57,0.04756203]
[1748952192345,0.04058672,160.6,160.57,0.04756203]
[1748952192547,6.2231,160.58,160.57,0.04756203]
[1748952193845,6.2229,160.59,160.57,0.04756203]
[1748952195754,6.2231,160.58,160.57,0.04756203]
[1748952197557,6.2229,160.59,160.57,0.04756203]
[1748952198148,6.26308672,160.6,160.57,0.04756203]
[1748952198646,6.26308672,160.6,160.58,6.2229]
[1748952199852,6.2227,160.59,160.57,6.27086203]
[1748952200052,0.04058672,160.6,160.57,0.04756203]
[1748952200452,6.26308672,160.6,160.58,6.2229]
[1748952200853,0.04058672,160.6,160.57,0.04756203]
[1748952201550,6.2231,160.59,160.57,0.04756203]
[1748952202558,6.2231,160.59,160.57,6.27106203]
[1748952204863,0.04058672,160.6,160.57,0.04756203]
[1748952205059,5.77262599,160.66,160.58,6.41395935]
[1748952205258,5.77262599,160.67,160.58,6.41395935]
[1748952205464,6.41395935,160.65,160.58,6.41395935]
[1748952205658,6.41395935,160.65,160.56,5.81615766]
[1748952205659,6.41395935,160.65,160.55,12.23011701]
[1748952205858,6.41395935,160.61,160.55,5.81615766]
[1748952206058,0.04037128,160.6,160.56,0.03980498]
[1748952206459,6.26287128,160.6,160.57,6.2235]
[1748952206863,0.04037128,160.6,160.57,6.2235]
[1748952207064,6.26287128,160.6,160.57,6.2235]
[1748952208064,0.04037128,160.6,160.56,6.26360498]
[1748952208468,6.2228,160.59,160.56,0.03980498]
[1748952208662,6.2228,160.59,160.56,6.26350498]
[1748952209255,0.04037128,160.6,160.56,0.03980498]
[1748952209459,4.11067879,160.57,160.56,0.03980498]
[1748952209660,4.11067879,160.57,160.5,5.81995983]
[1748952209862,10.33617879,160.52,160.49,5.81995983]
[1748952210168,4.11067879,160.52,160.49,5.81995983]
[1748952210362,4.11067879,160.51,160.48,1.9784]
[1748952210563,4.15692102,160.51,160.48,2.02210425]
[1748952211770,10.38302102,160.51,160.48,8.24890425]
[1748952213070,6.27234223,160.51,160.48,8.24890425]
[1748952213870,6.2262,160.5,160.48,2.02210425]
[1748952214171,0.04624223,160.51,160.48,2.02210425]
[1748952215558,0.04624223,160.51,160.49,6.2264]
[1748952215960,0.04624223,160.51,160.49,6.2266]
[1748952216163,0.04624223,160.51,160.48,2.02210425]
[1748952217076,0.04624223,160.51,160.49,6.2264]
[1748952219975,0.04624223,160.51,160.5,6.2262]
[1748952220177,0.04624223,160.51,160.48,2.02210425]
[1748952221172,0.04624223,160.51,160.49,6.2266]
[1748952222081,0.04624223,160.51,160.5,6.2262]
[1748952226581,0.04624223,160.51,160.49,6.2264]
[1748952226977,0.04624223,160.51,160.48,2.02210425]
[1748952228483,0.04624223,160.51,160.5,6.2262]
[1748952233978,0.04624223,160.51,160.49,6.2264]
[1748952234172,0.04624223,160.51,160.48,2.02210425]
[1748952234580,0.04624223,160.51,160.5,6.2262]
[1748952237184,0.04624223,160.51,160.5,10.3404364]
[1748952237382,30.96,160.53,160.52,6.2255]
[1748952237688,10.3387364,160.55,160.52,6.2255]
[1748952237986,10.3387364,160.55,160.53,6.225]
[1748952238387,6.2247,160.54,160.52,0.04699567]
[1748952238685,6.2247,160.54,160.52,6.27219567]
[1748952238881,4.1142364,160.55,160.52,6.27219567]
[1748952239383,6.2245,160.55,160.52,6.27219567]
[1748952239887,6.2245,160.55,160.53,6.2249]
[1748952240588,37.24845414,160.56,160.53,6.2249]
[1748952241086,6.2243,160.55,160.53,6.2249]
[1748952247488,6.42669797,160.55,160.52,0.04699567]
[1748952248592,6.2251,160.53,160.52,0.04699567]
[1748952249596,31.02435414,160.56,160.52,0.04699567]
[1748952250190,6.2245,160.55,160.52,6.27229567]
[1748952250393,31.02435414,160.56,160.52,6.27229567]
[1748952250795,6.2244,160.55,160.52,6.27229567]
[1748952252302,31.02435414,160.56,160.52,6.27229567]
[1748952252902,6.2245,160.55,160.53,6.2251]
[1748952253101,6.2245,160.55,160.52,0.04699567]
[1748952253492,6.2245,160.55,160.52,6.27229567]
[1748952254597,6.2249,160.54,160.52,6.27229567]
[1748952255598,6.2251,160.53,160.52,0.04699567]
[1748952255799,31.02435414,160.56,160.52,0.04699567]
[1748952256396,6.2244,160.55,160.52,6.27239567]
[1748952257604,6.2247,160.54,160.52,6.27239567]
[1748952258804,31.02435414,160.56,160.52,6.27239567]
[1748952258805,6.2244,160.55,160.52,6.27239567]
[1748952261207,10.33714209,160.55,160.52,6.27239567]
[1748952261406,10.33714209,160.55,160.53,6.225]
[1748952261598,4.11274209,160.55,160.52,0.04699567]
[1748952262104,4.11274209,160.55,160.53,6.2249]
[1748952262599,10.33724209,160.55,160.53,6.2249]
[1748952263206,6.2245,160.55,160.53,6.2249]
[1748952263405,10.33724209,160.55,160.53,6.2249]
[1748952265306,6.2247,160.54,160.52,6.27229567]
[1748952266304,10.33724209,160.55,160.52,6.27229567]
[1748952266504,31.02435414,160.56,160.52,0.04699567]
[1748952266706,31.02435414,160.56,160.55,4.11274209]
[1748952266707,0.04435414,160.56,160.55,4.11274209]
[1748952267208,0.04435414,160.56,160.55,10.33704209]
[1748952270103,0.04435414,160.56,160.55,13.03605611]
[1748952270310,0.04435414,160.56,160.55,10.33704209]
[1748952271113,4.15709623,160.56,160.55,2.7037142]
[1748952271416,4.15709623,160.56,160.53,10.2964]
[1748952271610,4.11274209,160.55,160.54,2.70379695]
[1748952271908,4.11274209,160.55,160.52,0.04699567]
[1748952272111,4.11274209,160.55,160.52,10.38503776]
[1748952272112,6.2246,160.55,160.52,10.38503776]
[1748952272304,4.11274209,160.55,160.52,0.04699567]
[1748952272510,4.11274209,160.53,160.52,0.04699567]
[1748952274011,10.33784209,160.53,160.52,0.04699567]
[1748952274409,10.33784209,160.53,160.52,2.74543498]
[1748952274610,10.33784209,160.53,160.52,0.04699567]
[1748952275009,35.15274209,160.55,160.52,0.04699567]
[1748952275313,31.04,160.55,160.54,4.11274209]
[1748952275514,0.04435414,160.56,160.55,6.2243]
[1748952276504,0.04435414,160.56,160.53,4.11274209]
[1748952277203,0.04435414,160.56,160.52,0.04699567]
[1748952277613,0.04435414,160.56,160.53,2.69804166]
[1748952277911,0.04435414,160.56,160.54,2.69806773]
[1748952278124,6.2245,160.55,160.52,6.27219567]
[1748952280011,6.2245,160.55,160.53,2.69820941]
[1748952280220,6.26835414,160.56,160.54,2.69822002]
[1748952280512,6.26835414,160.56,160.55,2.69818704]
[1748952280704,6.26835414,160.56,160.55,2.69818687]
[1748952280910,6.26835414,160.56,160.53,6.225]
[1748952281714,6.26835414,160.56,160.54,2.69823191]
[1748952281921,6.26835414,160.56,160.53,6.225]
[1748952282718,6.26835414,160.56,160.54,2.6957995]
[1748952283119,6.26835414,160.56,160.55,2.69576776]
[1748952283421,6.26835414,160.56,160.52,0.04699567]
[1748952284211,6.26835414,160.56,160.53,2.69577818]
[1748952284423,6.26835414,160.56,160.53,6.2249]
[1748952284626,6.26835414,160.56,160.54,2.69577818]
[1748952284816,6.26835414,160.56,160.53,6.2249]
[1748952285016,6.26835414,160.56,160.54,2.69577818]
[1748952285223,6.26835414,160.56,160.53,6.2249]
[1748952286925,6.26835414,160.56,160.54,2.69577801]
[1748952287129,0.04435414,160.56,160.54,6.2247]
[1748952287332,0.04435414,160.56,160.55,2.69562269]
[1748952287530,0.04435414,160.56,160.54,6.2247]
[1748952288928,0.04435414,160.56,160.55,8.91977955]
[1748952289132,0.04435414,160.56,160.55,12.64885127]
[1748952289332,542.2778,160.64,160.55,12.64885127]
[1748952289333,31.06,160.61,160.58,6.223]
[1748952289527,31.06,160.61,160.55,6.42455127]
[1748952289925,31.06,160.61,160.56,6.2238]
[1748952290432,0.04715765,160.6,160.57,2.73783875]
[1748952290626,0.04715765,160.6,160.57,0.04297536]
[1748952291026,6.2229,160.59,160.58,2.69487397]
[1748952291226,6.2229,160.59,160.57,6.26647536]
[1748952291828,6.2229,160.59,160.57,0.04297536]
[1748952292328,6.2231,160.58,160.57,0.04297536]
[1748952293137,6.2231,160.58,160.57,2.73491024]
[1748952293331,6.2231,160.58,160.57,0.04297536]
[1748952296232,37.2831,160.58,160.57,0.04297536]
[1748952298122,31.06,160.58,160.51,2.1793]
[1748952298328,6.42455127,160.55,160.49,5.81741779]
[1748952298529,31.06,160.54,160.5,2.69288057]
[1748952298729,31.06,160.54,160.49,6.2265]
[1748952298929,31.06,160.54,160.5,2.6929863]
[1748952299132,0.04355026,160.53,160.5,0.04039151]
[1748952299328,6.2256,160.52,160.5,0.04039151]
[1748952300331,0.04355026,160.53,160.5,0.04039151]
[1748952300737,0.04355026,160.53,160.51,2.69245781]
[1748952300939,6.2258,160.52,160.5,0.04039151]
[1748952301330,6.2258,160.51,160.5,0.04039151]
[1748952301532,6.2258,160.51,160.5,2.73286768]
[1748952301830,6.2258,160.51,160.5,0.04039151]
[1748952302030,6.2258,160.51,160.5,2.73286768]
[1748952302228,6.2258,160.51,160.5,2.7328571]
[1748952302537,6.2258,160.51,160.5,0.04039151]
[1748952302931,6.2258,160.51,160.5,2.73300502]
[1748952303140,6.2275,160.47,160.45,2.0882]
[1748952303433,120.16,160.55,160.42,9.80460563]
[1748952303434,6.42455127,160.48,160.42,9.80460563]
[1748952303636,12.65255127,160.46,160.42,3.9856]
[1748952303837,6.42455127,160.46,160.4,5.81900563]
[1748952304140,0.04461221,160.45,160.41,0.04400917]
[1748952304336,6.42455127,160.44,160.41,0.04400917]
[1748952304733,6.2292,160.43,160.41,0.04400917]
[1748952304928,6.42455127,160.44,160.41,0.04400917]
[1748952305330,12.65345127,160.44,160.41,0.04400917]
[1748952305527,6.42455127,160.44,160.41,0.04400917]
[1748952305730,6.42455127,160.44,160.41,6.27350917]
[1748952306739,6.42455127,160.44,160.41,0.04400917]
[1748952307132,0.04461221,160.45,160.41,6.27340917]
[1748952307337,0.04461221,160.45,160.41,0.04400917]
[1748952309040,6.2286,160.44,160.41,0.04400917]
[1748952309442,6.46916348,160.45,160.41,0.04400917]
[1748952309641,6.2286,160.44,160.41,0.04400917]
[1748952310842,6.27301221,160.45,160.41,6.27360917]
[1748952311144,6.46916348,160.45,160.41,0.04400917]
[1748952311347,6.2291,160.43,160.41,0.04400917]
[1748952312241,6.2293,160.42,160.41,0.04400917]
[1748952313340,6.42455127,160.43,160.35,33.0409]
[1748952313341,6.42455127,160.43,160.35,1.9809]
[1748952313535,6.42455127,160.39,160.34,6.2322]
[1748952313837,6.2311,160.38,160.34,6.2322]
[1748952314447,6.27497223,160.38,160.34,6.27587445]
[1748952315939,6.27497223,160.38,160.34,0.04367445]
[1748952315940,6.42455127,160.37,160.34,0.04367445]
[1748952316342,6.42455127,160.35,160.34,0.04367445]
[1748952316645,0.04387223,160.38,160.34,0.04367445]
[1748952317046,0.04387223,160.38,160.37,6.2313]
[1748952317240,43.71395127,160.42,160.35,6.42455127]
[1748952317445,31.06,160.42,160.37,6.42455127]
[1748952318139,31.06,160.42,160.39,6.2303]
[1748952318335,31.10348684,160.42,160.39,0.04039774]
[1748952319348,37.33288684,160.42,160.39,6.27069774]
[1748952322049,37.33288684,160.42,160.39,0.04039774]
[1748952322351,31.10348684,160.42,160.39,0.04039774]
[1748952322649,31.10348684,160.42,160.39,6.27069774]
[1748952323241,37.33298684,160.42,160.39,6.27069774]
[1748952323446,31.10348684,160.42,160.39,6.27069774]
[1748952324952,31.10348684,160.42,160.4,6.23]
[1748952325750,37.33288684,160.42,160.39,6.27079774]
[1748952325944,31.10348684,160.42,160.39,6.27079774]
[1748952326346,37.33308684,160.42,160.39,6.27079774]
[1748952328249,31.10348684,160.42,160.39,0.04039774]
[1748952328450,31.10348684,160.42,160.4,6.42455127]
[1748952328451,0.04348684,160.42,160.4,6.42455127]
[1748952328653,0.04348684,160.42,160.41,6.2297]
[1748952329453,0.04348684,160.42,160.4,8.2889]
[1748952330052,0.04348684,160.42,160.39,0.04039774]
[1748952330858,6.27298684,160.42,160.39,6.27079774]
[1748952332261,6.27298684,160.42,160.4,6.2301]
[1748952333156,0.04348684,160.42,160.4,6.2301]
[1748952333460,0.04348684,160.42,160.41,6.2297]
[1748952333855,0.04348684,160.42,160.4,6.2299]
[1748952334552,0.04348684,160.42,160.39,0.04039774]
[1748952334859,37.48455127,160.41,160.39,0.04039774]
[1748952335052,6.2301,160.4,160.39,0.04039774]
[1748952335854,31.06,160.41,160.39,0.04039774]
[1748952336455,31.06,160.41,160.39,6.27069774]
[1748952336758,0.04348684,160.42,160.39,0.04039774]
[1748952338761,6.2299,160.41,160.39,0.04039774]
[1748952339261,0.04348684,160.42,160.39,0.04039774]
[1748952339955,6.2301,160.4,160.39,0.04039774]
[1748952340751,31.4,160.4,160.39,0.04039774]
[1748952341560,6.27318684,160.42,160.39,0.04039774]
[1748952341761,6.27318684,160.42,160.39,6.27089774]
[1748952343054,0.04348684,160.42,160.4,6.23]
[1748952343658,6.27288684,160.42,160.4,6.23]
[1748952344154,0.04348684,160.42,160.41,6.2297]
[1748952344456,0.04348684,160.42,160.39,0.04039774]
[1748952345362,6.2298,160.41,160.39,6.27069774]
[1748952348068,0.04348684,160.42,160.39,0.04039774]
[1748952348569,6.2301,160.4,160.39,0.04039774]
[1748952350167,6.42455127,160.41,160.39,0.04039774]
[1748952350362,0.04348684,160.42,160.39,0.04039774]
[1748952350855,6.27308684,160.42,160.39,6.27069774]
[1748952352367,6.2298,160.41,160.39,0.04039774]
[1748952352767,0.04348684,160.42,160.39,0.04039774]
[1748952352963,6.27298684,160.42,160.39,6.27069774]
[1748952353764,6.23,160.41,160.39,0.04039774]
[1748952354561,6.2301,160.4,160.39,0.04039774]
[1748952358574,6.2299,160.41,160.39,0.04039774]
[1748952360375,6.46803811,160.42,160.39,0.04039774]
[1748952360376,6.2301,160.4,160.39,0.04039774]
[1748952360769,12.65465127,160.4,160.39,0.04039774]
[1748952360970,0.04348684,160.42,160.32,7.98131286]
[1748952361180,6.42455127,160.39,160.32,7.98131286]
[1748952361481,6.2309,160.38,160.35,6.2319]
[1748952361974,0.04375247,160.38,160.35,0.0413654]
[1748952362473,0.04375247,160.38,160.35,6.2731654]
[1748952362678,6.27485247,160.38,160.35,6.2731654]
[1748952364078,6.27485247,160.38,160.36,6.2316]
[1748952364273,6.27485247,160.38,160.35,0.0413654]
[1748952364482,0.04375247,160.38,160.35,0.0413654]
[1748952364982,6.42455127,160.37,160.35,0.0413654]
[1748952365184,6.2317,160.36,160.35,0.0413654]
[1748952366983,12.65605127,160.37,160.35,0.0413654]
[1748952367182,6.42455127,160.37,160.35,0.0413654]
[1748952367486,6.2317,160.36,160.35,0.0413654]
[1748952368084,12.65595127,160.37,160.35,0.0413654]
[1748952368280,6.42455127,160.37,160.35,0.0413654]
[1748952368786,6.2317,160.36,160.35,0.0413654]
[1748952369781,37.60455127,160.37,160.31,6.2334]
[1748952369977,6.42455127,160.35,160.31,6.2334]
[1748952370174,6.2327,160.34,160.31,6.2334]
[1748952370386,6.42455127,160.35,160.32,6.2332]
[1748952370588,6.42455127,160.35,160.28,10.07721315]
[1748952370887,12.70165032,160.35,160.32,0.03937535]
[1748952371185,12.70165032,160.35,160.32,6.27247535]
[1748952371486,12.70165032,160.35,160.32,0.03937535]
[1748952371686,12.70165032,160.35,160.33,6.2328]
[1748952372084,6.46945032,160.35,160.32,0.03937535]
[1748952372288,6.46945032,160.35,160.32,6.27237535]
[1748952372788,12.70165032,160.35,160.32,6.27237535]
[1748952372986,12.70165032,160.35,160.33,6.2328]
[1748952374888,6.2325,160.34,160.32,6.27237535]
[1748952375190,6.46945032,160.35,160.32,6.27237535]
[1748952375390,12.70175032,160.35,160.32,6.27237535]
[1748952376492,6.46945032,160.35,160.32,6.27237535]
[1748952376881,6.46945032,160.35,160.32,0.03937535]
[1748952377083,12.70185032,160.35,160.32,0.03937535]
[1748952377288,6.46945032,160.35,160.32,0.03937535]
[1748952378085,6.42455127,160.33,160.32,0.03937535]
[1748952378491,12.65735127,160.33,160.32,0.03937535]
[1748952378684,6.42455127,160.33,160.32,0.03937535]
[1748952378879,12.65735127,160.33,160.32,0.03937535]
[1748952380491,6.42455127,160.33,160.32,0.03937535]
[1748952381490,12.65735127,160.33,160.32,0.03937535]
[1748952382591,0.04489905,160.35,160.32,0.03937535]
[1748952383388,6.27719905,160.35,160.32,6.27237535]
[1748952383592,0.04489905,160.35,160.32,0.03937535]
[1748952383794,6.2326,160.34,160.32,6.27257535]
[1748952383994,0.04489905,160.35,160.32,0.03937535]
[1748952384397,0.04489905,160.35,160.34,6.2324]
[1748952384800,0.04489905,160.35,160.33,6.2326]
[1748952385802,6.27699905,160.35,160.33,6.2326]
[1748952386001,6.27699905,160.35,160.32,8.27747535]
[1748952386500,6.27699905,160.35,160.33,6.2327]
[1748952386901,0.04489905,160.35,160.34,6.2324]
[1748952387203,0.04489905,160.35,160.32,2.04457535]
[1748952387803,6.27699905,160.35,160.32,8.27767535]
[1748952388006,6.27699905,160.35,160.32,2.04457535]
[1748952389102,6.27699905,160.35,160.33,6.2328]
[1748952389400,6.2324,160.34,160.32,2.04457535]
[1748952390806,6.2324,160.34,160.32,8.27767535]
[1748952391414,12.70165032,160.35,160.32,8.27767535]
[1748952392706,6.46945032,160.35,160.32,2.04457535]
[1748952393309,6.46945032,160.35,160.33,6.2326]
[1748952393509,12.70165032,160.35,160.33,6.2326]
[1748952395910,12.70165032,160.35,160.32,2.04457535]
[1748952395911,6.46945032,160.35,160.34,6.2324]
[1748952396305,6.46945032,160.35,160.33,6.2325]
[1748952397102,12.70145032,160.35,160.33,6.2325]
[1748952397504,12.70145032,160.35,160.32,8.27767535]
[1748952397911,6.46945032,160.35,160.32,0.03937535]
[1748952398403,6.42455127,160.33,160.32,0.03937535]
[1748952399906,12.65735127,160.33,160.32,0.03937535]
[1748952400108,37.38455127,160.33,160.28,10.07251629]
[1748952400408,37.38455127,160.33,160.27,8.3405]
[1748952400409,6.2342,160.3,160.27,8.3405]
[1748952400611,30.96,160.33,160.25,2.55397415]
[1748952400612,6.42455127,160.29,160.25,8.37289044]
[1748952400800,6.42455127,160.29,160.25,2.55397415]
[1748952401003,6.42455127,160.29,160.26,6.2353]
[1748952401004,12.65915127,160.29,160.26,6.2353]
[1748952401311,12.70015306,160.29,160.26,6.28000996]
[1748952402302,6.2348,160.28,160.26,0.04470996]
[1748952403213,6.2352,160.27,160.26,0.04470996]
[1748952403399,6.46555306,160.29,160.26,0.04470996]
[1748952403916,6.235,160.28,160.26,0.04470996]
[1748952404314,6.42455127,160.27,160.26,0.04470996]
[1748952405006,12.65975127,160.27,160.26,0.04470996]
[1748952405419,6.42455127,160.27,160.26,0.04470996]
[1748952405612,37.42555306,160.29,160.27,6.2351]
[1748952405813,0.04100179,160.29,160.26,0.04470996]
[1748952406514,0.04100179,160.29,160.28,6.2348]
[1748952409522,30.96,160.35,160.33,6.2325]
[1748952410414,30.96,160.35,160.32,6.27507197]
[1748952410614,6.42455127,160.34,160.32,0.04207197]
[1748952411118,6.2328,160.33,160.32,0.04207197]
[1748952411315,6.42455127,160.34,160.32,0.04207197]
[1748952411516,6.42455127,160.34,160.32,6.27507197]
[1748952412017,12.65725127,160.34,160.32,0.04207197]
[1748952412315,6.42455127,160.34,160.32,0.04207197]
[1748952412520,12.65725127,160.34,160.32,0.04207197]
[1748952414024,43.61675127,160.35,160.32,6.27517197]
[1748952414321,43.61675127,160.35,160.32,0.04207197]
[1748952414322,37.38455127,160.35,160.32,0.04207197]
[1748952414523,43.61685127,160.35,160.32,6.27507197]
[1748952414915,37.38455127,160.35,160.32,6.27507197]
[1748952416124,6.2325,160.34,160.32,6.27507197]
[1748952416325,37.38455127,160.35,160.32,6.27507197]
[1748952416726,43.61675127,160.35,160.32,6.27507197]
[1748952417114,37.38455127,160.35,160.32,0.04207197]
[1748952417327,6.2328,160.33,160.32,0.04207197]
[1748952417524,12.65735127,160.33,160.32,0.04207197]
[1748952421732,6.42455127,160.33,160.32,0.04207197]
[1748952422331,12.65735127,160.33,160.32,0.04207197]
[1748952429037,6.2338,160.31,160.27,2.0922]
[1748952429436,6.2338,160.31,160.28,6.2346]
[1748952429932,6.2338,160.31,160.28,6.27933076]
[1748952430139,6.28179133,160.31,160.28,6.27933076]
[1748952430337,6.2342,160.3,160.28,0.04473076]
[1748952431735,6.2342,160.3,160.28,6.27943076]
[1748952431943,37.26169133,160.31,160.28,0.04473076]
[1748952432440,37.26169133,160.31,160.28,6.27933076]
[1748952433240,31.02799133,160.31,160.29,6.2342]
[1748952433643,31.02799133,160.31,160.28,0.04473076]
[1748952433943,37.26179133,160.31,160.28,6.27923076]
[1748952434746,6.2341,160.3,160.28,0.04473076]
[1748952435436,6.2341,160.3,160.28,6.27943076]
[1748952435741,37.26169133,160.31,160.28,6.27943076]
[1748952435932,31.02799133,160.31,160.28,6.27943076]
[1748952437041,6.2341,160.3,160.28,0.04473076]
[1748952439233,6.2344,160.29,160.28,0.04473076]
[1748952440848,6.234,160.3,160.28,0.04473076]
[1748952442442,6.2344,160.29,160.28,0.04473076]
[1748952442651,31.02799133,160.31,160.28,0.04473076]
[1748952443648,6.234,160.3,160.28,0.04473076]
[1748952443848,31.02799133,160.31,160.28,0.04473076]
[1748952444446,6.2344,160.29,160.28,0.04473076]
[1748952445752,6.2342,160.3,160.28,0.04473076]
[1748952446251,31.02799133,160.31,160.28,0.04473076]
[1748952446449,6.2344,160.29,160.28,0.04473076]
[1748952448952,6.2342,160.3,160.28,0.04473076]
[1748952449349,4.12586589,160.29,160.28,0.04473076]
[1748952449554,31.02799133,160.31,160.28,4.17059665]
[1748952450248,37.26169133,160.31,160.29,6.2341]
[1748952450444,37.26169133,160.31,160.28,4.17059665]
[1748952450745,37.26169133,160.31,160.28,10.40519665]
[1748952451150,37.26169133,160.31,160.28,0.04473076]